bitfinex-derivatives/quotes_SOLF0:USTF0_20251109
["timestamp","ask_amount","ask_price","bid_price","bid_amount"]
[1762647887625,3.07,157.1,157.09,0.04733775]
[1762647895330,3.07,157.09,157.05,1.43]
[1762647896336,3.11591588,157.09,157.05,1.47715344]
[1762647896535,3.11591588,157.09,157.05,0.04715344]
[1762647896536,4.9411319,157.09,157.05,0.04715344]
[1762647896736,3.07,157.07,157.05,0.04715344]
[1762647898029,3.07,157.06,157.05,0.04715344]
[1762647901733,3.12591588,157.09,157.05,1.47715344]
[1762647901940,0.04591588,157.09,157.06,1.43]
[1762647903038,0.04591588,157.09,157.08,1.43]
[1762647904831,3.12591588,157.09,157.06,1.43]
[1762647906230,3.12591588,157.09,157.06,7.1624]
[1762647906435,3.12591588,157.09,157.07,1.43]
[1762647906838,3.12591588,157.09,157.06,5.7324]
[1762647907039,3.12591588,157.09,157.06,7.1624]
[1762647915953,3.12591588,157.09,157.06,1.43]
[1762647916647,3.08,157.08,157.06,1.43]
[1762647917044,3.08,157.08,157.05,0.04715344]
[1762647917244,3.08,157.06,157.05,0.04715344]
[1762647918344,3.08,157.07,157.05,1.47715344]
[1762647918750,3.08,157.08,157.05,1.47715344]
[1762647919953,3.08,157.08,157.05,7.20995344]
[1762647920455,8.8118,157.08,157.05,7.20995344]
[1762647920656,3.08,157.07,157.05,1.47715344]
[1762647925158,3.08,157.08,157.05,7.20995344]
[1762647926657,3.08,157.07,157.05,7.20995344]
[1762647928256,8.8122,157.07,157.05,0.04715344]
[1762647928452,3.08,157.07,157.05,0.04715344]
[1762647928652,7.94847832,157.06,157.05,0.04715344]
[1762647928861,3.08,157.06,157.05,0.04715344]
[1762647929352,7.94888812,157.06,157.05,0.04715344]
[1762647930162,3.08,157.06,157.05,0.04715344]
[1762647930751,4.90521602,157.06,157.05,0.04715344]
[1762647931055,14.61556859,157.06,157.05,0.04715344]
[1762647932360,12.79035257,157.06,157.05,0.04715344]
[1762647933157,3.15,157.03,157.0,1.43]
[1762647933366,3.15,157.03,156.94,1.44]
[1762647933870,3.15,157.02,156.97,1.44]
[1762647934253,5.7336,157.03,156.93,33.47083039]
[1762647934254,3.19265175,157.01,156.98,1.46599812]
[1762647934959,3.15,157.0,156.98,0.02599812]
[1762647935759,3.15,156.99,156.98,0.02599812]
[1762647939965,0.04265175,157.01,156.99,1.44]
[1762647941072,0.04265175,157.01,156.99,7.175]
[1762647945073,0.04265175,157.01,157.0,1.44]
[1762647947379,5.86700961,157.1,156.98,0.02599812]
[1762647947380,3.01,157.06,157.04,1.44]
[1762647948170,3.01,157.07,157.05,1.44]
[1762647948370,2.85533638,157.11,157.05,1.44]
[1762647948371,0.04161084,157.08,157.05,1.44]
[1762647948577,3.05161084,157.08,157.05,1.44]
[1762647949873,3.05161084,157.08,157.06,1.44]
[1762647951380,3.05161084,157.08,157.05,5.7327]
[1762647951580,3.05161084,157.08,157.05,7.1727]
[1762647952768,3.05161084,157.08,157.06,1.44]
[1762647958986,0.04161084,157.08,157.07,1.44]
[1762647962987,2.98161084,157.08,157.04,0.04146192]
[1762647963384,2.94,157.07,157.04,0.04146192]
[1762647963784,2.94,157.06,157.04,0.04146192]
[1762647964192,8.6725,157.06,157.04,0.04146192]
[1762647964384,2.94,157.05,157.04,0.04146192]
[1762647965289,2.94,157.07,157.04,1.48146192]
[1762647966187,2.94,157.06,157.04,1.48146192]
[1762647966591,8.6725,157.06,157.04,0.04146192]
[1762647966798,2.94,157.05,157.04,0.04146192]
[1762647967992,2.94,157.03,156.99,7.1748]
[1762647969095,2.94,157.02,156.99,7.20198795]
[1762647969294,2.94,157.02,156.99,0.02718795]
[1762647970791,2.94,157.0,156.99,0.02718795]
[1762647976610,2.94,156.98,156.93,7.1771]
[1762647977009,2.94,156.98,156.94,1.44]
[1762647977399,2.94,156.97,156.92,1.44]
[1762647977601,0.04317483,156.96,156.92,1.44]
[1762647977810,2.94,156.95,156.92,1.44]
[1762647978110,2.94,156.95,156.93,1.44]
[1762647980514,2.94,156.95,156.9,7.178]
[1762647980699,2.94,156.93,156.9,1.44]
[1762647982013,2.94,156.93,156.91,1.44]
[1762647983911,2.94,156.93,156.91,7.1778]
[1762647985000,2.94,156.93,156.91,1.44]
[1762647985202,2.94,156.93,156.88,1.44]
[1762647985407,2.94,156.91,156.88,1.44]
[1762647986112,2.94,156.91,156.88,5.7388]
[1762647986413,2.94,156.91,156.89,1.44]
[1762647987213,2.94,156.91,156.88,7.1788]
[1762647988102,2.98187968,156.92,156.89,1.44]
[1762647988711,2.94,156.91,156.85,1.44]
[1762647989502,2.94,156.91,156.87,1.44]
[1762647990508,2.98187968,156.92,156.88,1.44]
[1762647990909,0.04187968,156.92,156.88,1.44]
[1762647991110,0.04187968,156.92,156.91,1.44]
[1762647991910,0.04187968,156.92,156.9,5.7382]
[1762647991911,0.04187968,156.92,156.9,7.1682]
[1762647993218,0.04187968,156.92,156.91,1.43]
[1762647996427,0.04187968,156.92,156.9,7.1682]
[1762647997522,3.23187968,156.92,156.88,1.43]
[1762647998024,3.23187968,156.92,156.86,1.43]
[1762647998415,3.19,156.91,156.87,7.1691]
[1762647999112,3.19,156.9,156.86,1.43]
[1762648000021,3.19,156.9,156.86,7.1697]
[1762648001722,3.19,156.9,156.86,1.43]
[1762648001919,3.23187968,156.92,156.86,1.43]
[1762648002321,8.96947968,156.92,156.87,5.7393]
[1762648002524,3.19,156.91,156.87,7.1693]
[1762648003932,3.23187968,156.92,156.89,1.43]
[1762648007229,3.23187968,156.92,156.88,7.1688]
[1762648007633,2.94,156.91,156.88,7.1688]
[1762648007834,2.94,156.91,156.86,1.43]
[1762648008921,8.678,156.91,156.87,5.7394]
[1762648009235,2.94,156.9,156.87,7.1694]
[1762648009431,2.94,156.9,156.84,64.59]
[1762648009730,2.94,156.9,156.87,1.43]
[1762648009731,2.98540706,156.89,156.87,1.43]
[1762648010725,2.98540706,156.89,156.86,7.1697]
[1762648013732,2.98540706,156.89,156.87,1.43]
[1762648014431,2.98540706,156.89,156.87,7.1694]
[1762648014632,0.04540706,156.89,156.88,1.43]
[1762648020134,2.94,156.97,156.93,1.43]
[1762648020328,2.94,156.95,156.92,7.1674]
[1762648020645,2.94,156.95,156.92,5.7374]
[1762648020937,2.94,156.95,156.92,7.1674]
[1762648021138,2.98594007,156.95,156.92,7.21280706]
[1762648021339,2.98594007,156.95,156.92,0.04540706]
[1762648022138,8.72244007,156.95,156.92,0.04540706]
[1762648022337,3.14,156.94,156.92,0.04540706]
[1762648028452,3.14,156.93,156.92,0.04540706]
[1762648033962,0.04594007,156.95,156.92,1.48540706]
[1762648034758,3.18594007,156.95,156.92,0.04540706]
[1762648036056,3.14,156.94,156.92,0.04540706]
[1762648045265,3.14,156.93,156.92,0.04540706]
[1762648047466,8.0333606,156.93,156.92,0.04540706]
[1762648047670,3.14,156.92,156.87,1.44]
[1762648048058,3.14,156.91,156.81,11.4829]
[1762648048264,3.14,156.91,156.85,1.44]
[1762648048565,3.14,156.89,156.85,1.44]
[1762648049764,3.14,156.89,156.85,7.1798]
[1762648049971,3.14,156.89,156.85,5.7398]
[1762648050669,3.14,156.89,156.85,7.1798]
[1762648051169,3.14,156.88,156.86,5.7397]
[1762648051370,3.14,156.88,156.86,7.1797]
[1762648051560,0.04245542,156.9,156.86,1.44]
[1762648051765,0.04245542,156.9,156.89,1.43]
[1762648054274,0.04245542,156.9,156.89,3.25952169]
[1762648056573,0.04245542,156.9,156.89,1.43]
[1762648067487,3.03245542,156.9,156.86,7.1696]
[1762648067681,3.03245542,156.9,156.87,1.43]
[1762648069284,3.03245542,156.9,156.87,7.1694]
[1762648072592,3.03245542,156.9,156.87,5.7394]
[1762648073192,2.99,156.89,156.86,1.43]
[1762648073896,2.99,156.88,156.84,5.7404]
[1762648074885,2.99,156.88,156.8,65.99822102]
[1762648074886,2.99,156.87,156.83,7.1707]
[1762648075091,3.03478631,156.87,156.83,7.1707]
[1762648075795,3.03478631,156.87,156.84,7.1704]
[1762648083393,3.03478631,156.87,156.84,1.43]
[1762648084600,3.03478631,156.87,156.81,1.44]
[1762648085100,3.03478631,156.87,156.83,5.7407]
[1762648085397,3.22,156.86,156.84,1.44]
[1762648087299,3.22,156.86,156.84,7.1805]
[1762648087699,3.22,156.86,156.79,19.10133426]
[1762648087700,3.22,156.86,156.79,1.44]
[1762648088703,3.22,156.85,156.8,1.44]
[1762648088899,3.22,156.83,156.8,1.44]
[1762648090098,3.22,156.83,156.81,1.44]
[1762648091712,3.22,156.83,156.81,7.1816]
[1762648092014,0.04697389,156.84,156.82,1.44]
[1762648092705,0.04697389,156.84,156.83,1.44]
[1762648094612,3.22,156.91,156.86,1.44]
[1762648095118,3.22,156.91,156.87,5.7393]
[1762648095319,3.22,156.91,156.86,1.44]
[1762648095505,3.22,156.89,156.87,0.04372217]
[1762648096218,3.22,156.89,156.87,7.22312217]
[1762648100825,3.26385121,156.9,156.88,1.44]
[1762648101120,0.04385121,156.9,156.89,1.44]
[1762648104025,3.26385121,156.9,156.88,5.739]
[1762648104934,0.04385121,156.9,156.89,1.44]
[1762648111932,0.04385121,156.9,156.89,1.43]
[1762648116038,0.04385121,156.9,156.89,7.1687]
[1762648125447,2.96,156.97,156.93,1.44]
[1762648126540,3.00318559,156.97,156.93,1.48447888]
[1762648126940,8.73898559,156.97,156.93,1.48447888]
[1762648127141,2.96,156.96,156.93,7.22167888]
[1762648129745,2.96,156.96,156.93,1.48447888]
[1762648130743,2.96,156.94,156.93,0.04447888]
[1762648131938,3.00318559,156.97,156.93,1.48447888]
[1762648135546,0.04318559,156.97,156.95,1.44]
[1762648140946,3.00318559,156.97,156.93,0.04447888]
[1762648141147,2.96,156.95,156.93,0.04447888]
[1762648141948,2.96,156.94,156.93,0.04447888]
[1762648148955,2.96,156.93,156.88,1.44]
[1762648149351,2.96,156.93,156.88,7.179]
[1762648149551,2.96,156.93,156.89,1.44]
[1762648149947,0.04686104,156.93,156.89,1.48120933]
[1762648151158,0.04686104,156.93,156.9,1.44]
[1762648152958,3.00686104,156.93,156.9,1.44]
[1762648159576,0.04686104,156.93,156.92,1.44]
[1762648172970,0.04686104,156.93,156.91,5.7378]
[1762648172971,3.24,157.01,156.95,1.44]
[1762648173275,1.83012528,157.02,156.95,1.44]
[1762648173276,3.24,157.0,156.95,1.44]
[1762648174076,3.28859572,156.99,156.96,1.48830722]
[1762648176989,3.28859572,156.99,156.96,0.04830722]
[1762648177779,3.28859572,156.99,156.96,1.48830722]
[1762648182868,3.28859572,156.99,156.96,0.04830722]
[1762648183568,6.14597263,156.99,156.96,0.04830722]
[1762648183768,3.24,156.97,156.96,0.04830722]
[1762648184168,3.24,156.96,156.86,1.44]
[1762648184976,3.24,156.96,156.9,7.1582]
[1762648185178,5.736,156.97,156.91,1.46236409]
[1762648185179,3.02,156.94,156.91,1.46236409]
[1762648199413,3.02,156.94,156.91,0.04236409]
[1762648202899,3.02,156.94,156.91,1.46236409]
[1762648206807,3.02,156.94,156.91,7.20026409]
[1762648207806,3.02,156.94,156.92,1.42]
[1762648208106,0.04502331,156.95,156.93,1.42]
[1762648208410,2.93,156.99,156.93,1.42]
[1762648209506,2.93,156.99,156.95,1.42]
[1762648209507,0.04429323,156.98,156.95,1.42]
[1762648210008,0.04429323,156.98,156.96,7.156]
[1762648210205,0.04429323,156.98,156.97,1.42]
[1762648210409,2.93,157.02,156.97,1.42]
[1762648210604,2.93,157.07,157.0,5.7346]
[1762648210810,2.93,157.05,157.0,5.7346]
[1762648211107,2.93,157.03,157.0,5.7346]
[1762648211313,2.97851259,157.03,157.0,0.04793108]
[1762648211610,2.93,157.01,157.0,0.04793108]
[1762648218009,2.93,157.02,157.0,1.46793108]
[1762648218214,2.97851259,157.03,157.0,1.46793108]
[1762648218415,0.04851259,157.03,157.0,1.46793108]
[1762648220018,0.04851259,157.03,157.0,7.20243108]
[1762648220217,0.04851259,157.03,157.01,1.42]
[1762648220414,2.97851259,157.03,157.0,0.04793108]
[1762648221111,2.97851259,157.03,157.0,1.46793108]
[1762648221710,2.97851259,157.03,157.01,1.42]
[1762648221914,0.04851259,157.03,157.01,1.42]
[1762648222517,0.04851259,157.03,157.01,7.1541]
[1762648222814,0.04851259,157.03,157.01,1.42]
[1762648223512,2.97851259,157.03,157.0,0.04793108]
[1762648234027,0.04851259,157.03,157.01,1.43]
[1762648234726,0.04851259,157.03,157.01,7.1639]
[1762648234927,0.04851259,157.03,157.02,1.43]
[1762648235427,3.24,157.15,157.07,1.43]
[1762648235621,3.24,157.13,157.07,1.43]
[1762648236234,3.24,157.11,157.08,0.0425356]
[1762648236436,3.24,157.11,157.08,0.04223549]
[1762648237431,3.24,157.11,157.08,1.47223549]
[1762648242326,3.24,157.11,157.08,0.04223549]
[1762648252240,3.0,157.09,157.08,0.04223549]
[1762648252538,3.0,157.09,157.03,5.733]
[1762648252539,3.0,157.08,157.03,7.173]
[1762648253142,3.0,157.08,157.04,5.7328]
[1762648253341,3.04448555,157.08,157.04,0.04129646]
[1762648253646,3.04448555,157.08,157.04,1.48129646]
[1762648254240,3.04448555,157.08,157.04,7.21409646]
[1762648254439,3.04448555,157.08,157.05,1.44]
[1762648254841,0.04448555,157.08,157.07,1.44]
[1762648256437,3.0,157.14,157.11,1.44]
[1762648256648,3.0,157.17,157.11,1.44]
[1762648256943,3.0,157.17,157.13,1.44]
[1762648257341,3.0,157.17,157.13,1.48409401]
[1762648257342,3.04705775,157.17,157.13,1.48409401]
[1762648258140,3.04705775,157.17,157.13,0.04409401]
[1762648262451,3.14,157.16,157.13,0.04409401]
[1762648263248,8.8686,157.16,157.13,0.04409401]
[1762648263449,3.14,157.15,157.13,0.04409401]
[1762648263744,4.82077934,157.14,157.07,5.7316]
[1762648264041,3.14,157.13,157.07,5.7316]
[1762648264549,3.14,157.13,157.01,62.98]
[1762648264550,3.14,157.12,157.03,1.44]
[1762648264846,3.18432143,157.09,157.06,1.48137144]
[1762648269948,3.18432143,157.09,157.06,0.04137144]
[1762648272655,3.14,157.07,157.06,0.04137144]
[1762648288162,3.18432143,157.09,157.06,1.48137144]
[1762648288466,3.18432143,157.09,157.06,0.04137144]
[1762648288762,3.18432143,157.09,157.07,5.7317]
[1762648289267,3.18432143,157.09,157.06,0.04137144]
[1762648292668,3.18432143,157.09,157.06,5.77347144]
[1762648294268,3.18432143,157.09,157.06,0.04137144]
[1762648295070,3.18432143,157.09,157.06,5.77347144]
[1762648303562,3.18432143,157.09,157.07,7.1717]
[1762648306580,3.18432143,157.09,157.06,0.04137144]
[1762648307578,3.18432143,157.09,157.06,1.48137144]
[1762648308176,3.18432143,157.09,157.07,1.44]
[1762648309072,3.18432143,157.09,157.06,7.21347144]
[1762648315882,0.04432143,157.09,157.08,1.44]
[1762648317680,0.04432143,157.09,157.07,5.7317]
[1762648317681,3.14432143,157.09,157.07,5.7317]
[1762648318179,3.14432143,157.09,157.07,7.1717]
[1762648321182,3.14432143,157.09,157.06,0.04137144]
[1762648321883,3.14432143,157.09,157.06,1.48137144]
[1762648322676,8.87542143,157.09,157.06,0.04137144]
[1762648322876,3.18,157.08,157.06,0.04137144]
[1762648327881,8.06641469,157.07,157.06,0.04137144]
[1762648329287,3.18,157.07,157.06,0.04137144]
[1762648329486,8.06622833,157.07,157.06,0.04137144]
[1762648331385,3.18,157.07,157.06,0.04137144]
[1762648332189,8.06699145,157.07,157.06,0.04137144]
[1762648332383,8.06699145,157.07,156.99,1.44]
[1762648332384,3.18,157.06,156.99,1.44]
[1762648332579,3.18,157.04,156.99,1.44]
[1762648333586,3.18,157.02,157.0,0.04218134]
[1762648334188,3.18,157.02,157.0,5.77638134]
[1762648334987,3.18,157.02,157.0,0.04218134]
[1762648344498,8.9137,157.02,157.0,0.04218134]
[1762648344797,3.18,157.02,157.0,0.04218134]
[1762648346791,3.22731187,157.03,157.0,1.52218134]
[1762648347393,0.04731187,157.03,157.02,1.48]
[1762648358603,3.16,157.07,157.0,0.04218134]
[1762648358604,3.16,157.07,157.04,1.48]
[1762648359698,3.20404662,157.07,157.04,1.52617303]
[1762648360102,3.20404662,157.07,157.04,7.25867303]
[1762648365225,3.20404662,157.07,157.05,5.7324]
[1762648368927,0.04404662,157.07,157.06,1.48]
[1762648369127,3.14,157.13,157.09,1.48]
[1762648370031,3.18138921,157.13,157.09,1.52793261]
[1762648371123,3.18138921,157.13,157.1,7.2106]
[1762648372029,3.18138921,157.13,157.1,5.7306]
[1762648372617,3.18138921,157.13,157.1,7.2106]
[1762648373731,3.18138921,157.13,157.09,1.52793261]
[1762648373925,3.18138921,157.13,157.09,0.04793261]
[1762648375030,3.14,157.11,157.09,0.04793261]
[1762648378434,3.14,157.11,157.09,5.77893261]
[1762648379124,3.14,157.11,157.09,7.25893261]
[1762648379333,3.14,157.11,157.09,5.77893261]
[1762648380531,3.14,157.11,157.09,0.04793261]
[1762648382930,3.01138921,157.13,157.1,1.48]
[1762648385942,3.01138921,157.13,157.11,5.7303]
[1762648386239,3.01138921,157.13,157.11,7.2103]
[1762648386443,3.01138921,157.13,157.09,0.04793261]
[1762648386444,3.01138921,157.13,157.09,1.52793261]
[1762648386629,3.01138921,157.13,157.09,0.04793261]
[1762648386831,3.01138921,157.13,157.09,1.52793261]
[1762648388039,3.01138921,157.13,157.09,7.25893261]
[1762648389640,3.01138921,157.13,157.1,5.7306]
[1762648390646,3.01138921,157.13,157.1,7.2106]
[1762648392142,3.01138921,157.13,157.11,7.2102]
[1762648392342,0.04138921,157.13,157.12,1.48]
[1762648393041,0.04138921,157.13,157.11,5.7302]
[1762648393042,0.04138921,157.13,157.11,7.2102]
[1762648393244,3.01138921,157.13,157.11,7.2102]
[1762648399250,3.01138921,157.13,157.1,5.7307]
[1762648399549,3.01138921,157.13,157.1,7.2107]
[1762648402050,3.01138921,157.13,157.11,5.7303]
[1762648402255,3.01138921,157.13,157.11,7.2103]
[1762648404852,3.01138921,157.13,157.09,0.04793261]
[1762648405452,3.01138921,157.13,157.09,7.25893261]
[1762648405956,3.01138921,157.13,157.1,5.7307]
[1762648408358,3.01138921,157.13,157.1,7.2107]
[1762648413457,7.87217754,157.12,157.1,7.2107]
[1762648413658,2.98,157.12,157.1,7.2107]
[1762648414150,2.98,157.12,157.11,1.48]
[1762648414351,7.87229842,157.12,157.11,1.48]
[1762648414660,7.87229842,157.12,157.1,5.7307]
[1762648414957,2.98,157.12,157.1,7.2107]
[1762648420961,2.98,157.12,157.09,0.04793261]
[1762648421167,0.04138921,157.13,157.09,0.04793261]
[1762648421168,7.87205401,157.11,157.09,1.52793261]
[1762648421469,2.98,157.11,157.09,1.52793261]
[1762648424079,2.98,157.11,157.09,7.25893261]
[1762648430468,2.98,157.11,157.1,1.48]
[1762648433367,3.28138921,157.13,157.11,1.48]
[1762648433671,4.92453734,157.12,157.11,1.48]
[1762648434071,8.16453734,157.12,157.11,1.48]
[1762648434371,8.16453734,157.12,157.1,7.2106]
[1762648434573,3.24,157.12,157.1,7.2106]
[1762648436166,3.28138921,157.13,157.12,1.48]
[1762648436472,4.96631596,157.13,157.12,1.48]
[1762648438067,4.96631596,157.13,157.12,7.2099]
[1762648438572,8.20631596,157.13,157.12,7.2099]
[1762648440472,13.06931581,157.13,157.12,7.2099]
[1762648441172,13.06931581,157.13,157.12,1.48]
[1762648442373,8.20631596,157.13,157.12,1.48]
[1762648442774,0.04138921,157.13,157.12,1.48]
[1762648443374,4.96776199,157.13,157.12,1.48]
[1762648443876,8.15776199,157.13,157.11,5.7303]
[1762648444076,3.23138921,157.13,157.11,7.1903]
[1762648444475,3.23138921,157.13,157.12,1.46]
[1762648444669,8.15725812,157.13,157.12,1.46]
[1762648445177,3.23138921,157.13,157.12,1.46]
[1762648446565,0.04138921,157.13,157.12,1.46]
[1762648477292,2.93,157.25,157.15,1.47]
[1762648477498,2.93,157.23,157.17,1.47]
[1762648478193,2.97871827,157.22,157.21,5.7266]
[1762648478495,2.97223522,157.23,157.21,7.1966]
[1762648480293,0.04223522,157.23,157.22,1.47]
[1762648488599,0.04223522,157.23,157.22,3.29207002]
[1762648488800,3.17,157.28,157.24,1.48]
[1762648489903,3.21713917,157.28,157.25,1.48]
[1762648491096,3.21713917,157.28,157.26,7.2048]
[1762648491800,3.21713917,157.28,157.27,1.48]
[1762648492398,3.21713917,157.28,157.26,7.2048]
[1762648493803,3.21713917,157.28,157.27,1.48]
[1762648494796,0.04713917,157.28,157.27,1.48]
[1762648498303,3.17,157.32,157.3,1.48]
[1762648499802,0.04075365,157.33,157.29,64.70268527]
[1762648499995,0.04075365,157.33,157.32,1.48]
[1762648500404,3.17,157.37,157.32,7.2023]
[1762648500603,3.17,157.37,157.33,3.30207002]
[1762648501402,3.21747586,157.37,157.33,9.07185479]
[1762648501804,3.21747586,157.37,157.33,3.34965479]
[1762648502104,3.21747586,157.37,157.34,1.47]
[1762648503105,0.04747586,157.37,157.36,1.47]
[1762648504199,5.7185,157.44,157.37,7.7708]
[1762648504407,1.82207002,157.45,157.37,2.05]
[1762648504614,4.82139672,157.47,157.42,1.82207002]
[1762648504913,1.82207002,157.51,157.42,1.82207002]
[1762648505104,0.0486781,157.48,157.45,0.04850473]
[1762648506206,2.94,157.47,157.45,0.04850473]
[1762648506811,2.94,157.47,157.45,2.09850473]
[1762648507808,2.94,157.47,157.45,0.04850473]
[1762648509311,8.6574,157.47,157.45,0.04850473]
[1762648509510,2.94,157.46,157.45,0.04850473]
[1762648510011,2.94,157.43,157.38,2.05]
[1762648511113,2.98235887,157.42,157.39,2.13143373]
[1762648511313,2.98235887,157.42,157.39,0.04143373]
[1762648511703,0.04235887,157.42,157.39,2.13143373]
[1762648512714,0.04235887,157.42,157.39,7.85143373]
[1762648512916,0.04235887,157.42,157.4,2.09]
[1762648514119,2.98235887,157.42,157.4,2.09]
[1762648514514,2.98235887,157.42,157.39,0.04143373]
[1762648514714,2.98235887,157.42,157.39,2.13143373]
[1762648516922,0.04235887,157.42,157.4,2.09]
[1762648519220,2.98235887,157.42,157.4,2.09]
[1762648519721,2.98235887,157.42,157.39,7.85143373]
[1762648522125,2.98235887,157.42,157.4,2.09]
[1762648522325,0.04235887,157.42,157.4,7.8097]
[1762648522627,0.04235887,157.42,157.41,2.09]
[1762648523127,0.04235887,157.42,157.4,5.7197]
[1762648523320,2.98235887,157.42,157.4,7.8097]
[1762648523522,0.04235887,157.42,157.41,2.09]
[1762648523924,0.04235887,157.42,157.4,7.8097]
[1762648524324,0.04235887,157.42,157.41,2.09]
[1762648537838,3.21235887,157.42,157.39,0.04143373]
[1762648540249,5.03442889,157.42,157.39,0.04143373]
[1762648540451,3.17,157.41,157.39,0.04143373]
[1762648545151,8.8894,157.41,157.39,0.04143373]
[1762648545457,2.95,157.4,157.39,0.04143373]
[1762648546356,2.99235887,157.42,157.39,2.13143373]
[1762648546550,2.95,157.41,157.4,5.7196]
[1762648546750,2.95,157.41,157.39,2.13143373]
[1762648546950,2.95,157.41,157.39,0.04143373]
[1762648548556,8.6696,157.41,157.39,0.04143373]
[1762648548757,12.41525286,157.4,157.39,0.04143373]
[1762648549057,2.95,157.39,157.33,64.85]
[1762648549251,2.95,157.37,157.33,64.85]
[1762648549555,2.95,157.37,157.33,7.8122]
[1762648549755,5.87165091,157.42,157.34,2.09]
[1762648549958,0.04840588,157.4,157.37,2.09]
[1762648550156,0.04840588,157.4,157.38,7.8103]
[1762648550362,2.99840588,157.4,157.38,7.8103]
[1762648552753,2.99840588,157.4,157.37,0.04658584]
[1762648553356,2.99840588,157.4,157.37,2.13658584]
[1762648558367,2.99840588,157.4,157.38,5.7204]
[1762648562566,2.99840588,157.4,157.39,2.1]
[1762648562567,0.04840588,157.4,157.39,2.1]
[1762648563072,0.04840588,157.4,157.37,0.04658584]
[1762648563073,3.07840588,157.4,157.37,2.14658584]
[1762648565069,8.79820588,157.4,157.37,0.04658584]
[1762648565269,3.03,157.39,157.37,0.04658584]
[1762648566168,3.03,157.38,157.37,0.04658584]
[1762648569473,3.03,157.36,157.33,2.1]
[1762648570368,3.07580763,157.36,157.33,2.14198098]
[1762648570566,3.07580763,157.36,157.34,2.1]
[1762648571673,3.07580763,157.36,157.33,2.14198098]
[1762648572375,3.07580763,157.36,157.33,7.86418098]
[1762648572671,3.07580763,157.36,157.33,2.14198098]
[1762648573381,3.07580763,157.36,157.33,0.04198098]
[1762648573767,3.07580763,157.36,157.33,2.14198098]
[1762648575069,3.07580763,157.36,157.33,7.86418098]
[1762648575273,3.07580763,157.36,157.33,0.04198098]
[1762648577773,3.07580763,157.36,157.33,7.86428098]
[1762648578785,3.07580763,157.36,157.34,7.8219]
[1762648579781,3.07580763,157.36,157.33,2.14198098]
[1762648581081,3.07580763,157.36,157.33,7.86418098]
[1762648585672,3.07580763,157.36,157.34,7.8219]
[1762648588186,3.07580763,157.36,157.34,5.7219]
[1762648589380,3.07580763,157.36,157.33,2.14198098]
[1762648590987,3.07580763,157.36,157.33,7.86428098]
[1762648591689,3.07580763,157.36,157.34,7.8019]
[1762648591982,3.12580763,157.36,157.34,7.8019]
[1762648592583,3.12580763,157.36,157.35,2.08]
[1762648592784,3.12580763,157.36,157.34,7.8019]
[1762648597194,3.12580763,157.36,157.33,2.12198098]
[1762648597889,3.08,157.35,157.33,2.12198098]
[1762648598094,3.08,157.35,157.33,0.04198098]
[1762648605399,8.8016,157.35,157.33,0.04198098]
[1762648605697,2.93,157.34,157.33,0.04198098]
[1762648609001,2.93,157.34,157.33,2.12198098]
[1762648609399,2.97580763,157.36,157.33,7.84428098]
[1762648609703,7.78664041,157.35,157.33,7.84428098]
[1762648609897,2.93,157.35,157.33,7.84428098]
[1762648610093,2.97580763,157.36,157.34,2.08]
[1762648610300,7.78664293,157.35,157.34,2.08]
[1762648611403,2.93,157.35,157.33,7.84428098]
[1762648611596,2.93,157.35,157.33,5.76428098]
[1762648612198,2.93,157.35,157.33,7.84428098]
[1762648613403,2.93,157.35,157.33,2.12198098]
[1762648616108,8.6516,157.35,157.33,0.04198098]
[1762648616404,2.93,157.34,157.33,2.12198098]
[1762648616602,2.93,157.35,157.33,2.12198098]